bitfinex-derivatives/quotes_ETHF0:USTF0_20250518
["timestamp","ask_amount","ask_price","bid_price","bid_amount"]
[1747601556695,3.2078,2396.0,2395.8,0.83437]
[1747601556897,3.2078,2396.0,2395.9,2.24875]
[1747601557090,3.2078,2396.0,2395.9,5.30675]
[1747601557597,3.2078,2396.0,2395.9,4.4724]
[1747601558798,3.2078,2396.0,2395.9,5.30675]
[1747601559698,1.2606,2396.4,2395.9,4.4724]
[1747601559699,3.2078,2396.2,2395.9,4.4724]
[1747601559895,4.04206,2396.2,2395.9,4.4724]
[1747601560396,0.83426,2396.2,2395.9,4.4724]
[1747601560593,0.83431,2396.1,2395.9,3.058]
[1747601560801,0.83432,2396.0,2395.9,3.058]
[1747601561202,0.83432,2396.0,2395.7,11.232]
[1747601561396,3.2078,2395.9,2395.6,3.2078]
[1747601561597,3.2078,2396.2,2395.6,14.4398]
[1747601561799,0.83432,2396.1,2395.6,14.4398]
[1747601562000,0.83432,2396.0,2395.6,15.7852]
[1747601562199,3.2078,2395.9,2395.6,15.7852]
[1747601562406,4.04216,2395.9,2395.6,15.7852]
[1747601562595,4.04216,2395.9,2395.6,11.232]
[1747601562795,1.2941,2395.8,2395.6,11.232]
[1747601564305,2.1285,2395.8,2395.6,11.232]
[1747601564515,3.4748,2395.8,2395.6,11.232]
[1747601565100,2.6404,2395.8,2395.6,11.232]
[1747601565303,2.6404,2395.8,2395.2,12.5378]
[1747601565502,3.2078,2395.6,2395.1,12.42905847]
[1747601565705,4.04227,2395.6,2395.1,13.78285847]
[1747601565902,3.2078,2395.6,2395.2,0.37037231]
[1747601566409,3.2078,2395.6,2395.3,0.37037231]
[1747601566805,3.2078,2395.6,2395.4,0.37037231]
[1747601567213,1.3552,2395.5,2395.4,0.37037231]
[1747601567706,2.6404,2395.8,2395.4,0.37037231]
[1747601567907,6.51913011,2396.2,2395.5,1.3538]
[1747601568104,3.31133011,2396.2,2395.6,15.90277259]
[1747601568313,3.31133011,2396.2,2395.7,0.83442]
[1747601568617,3.31133011,2396.2,2395.8,0.83436]
[1747601568913,3.31133011,2396.2,2395.9,0.37037231]
[1747601569105,3.31133011,2396.2,2395.9,1.80507231]
[1747601569309,3.31133011,2396.2,2395.9,2.63942231]
[1747601569507,3.31133011,2396.2,2395.9,1.80507231]
[1747601569717,1.3254,2396.3,2396.0,0.37037231]
[1747601569910,1.3254,2396.3,2396.0,1.80507231]
[1747601570206,1.3254,2396.3,2396.1,0.37037231]
[1747601570813,1.3254,2396.3,2396.2,0.37037231]
[1747601572024,3.2078,2396.4,2396.2,0.37037231]
[1747601572316,3.2078,2396.4,2396.3,1.68607231]
[1747601572506,5.46138,2396.4,2396.3,0.37037231]
[1747601572707,4.6272,2396.4,2396.3,0.37037231]
[1747601572902,3.2078,2396.4,2396.3,0.37037231]
[1747601573418,1.4194,2396.4,2396.3,0.37037231]
[1747601574115,1.4194,2396.4,2396.3,1.68607231]
[1747601574323,1.4194,2396.4,2396.3,4.74407231]
[1747601575310,1.4194,2396.4,2396.3,3.42837231]
[1747601575908,3.2078,2396.5,2396.3,3.42837231]
[1747601576118,1.4384,2396.4,2396.1,1.3805]
[1747601576309,1.4384,2396.4,2396.1,2.21476]
[1747601576509,1.4384,2396.4,2396.1,1.3805]
[1747601576710,1.4384,2396.4,2396.2,0.39177814]
[1747601577316,1.4384,2396.4,2396.3,0.39177814]
[1747601578918,2.27258,2396.4,2396.3,0.39177814]
[1747601579117,1.4384,2396.4,2396.3,0.39177814]
[1747601579819,2.27258,2396.4,2396.3,0.39177814]
[1747601580220,7.27258,2396.4,2396.3,0.39177814]
[1747601580619,18.45658,2396.4,2396.3,0.39177814]
[1747601580816,18.45558,2396.4,2396.3,0.39177814]
[1747601581620,0.83453,2395.5,2395.1,1.22105847]
[1747601581824,1.4447,2395.4,2395.1,1.22105847]
[1747601582018,1.4447,2395.4,2395.2,1.4436]
[1747601582914,4.6525,2395.4,2395.2,1.4436]
[1747601584121,1.4447,2395.4,2395.2,1.4436]
[1747601584319,14.3868,2395.7,2395.2,1.4436]
[1747601584519,1.4134,2395.6,2395.2,2.27818]
[1747601584723,1.4134,2395.6,2395.3,1.4314]
[1747601585234,4.58303011,2396.0,2395.3,1.4314]
[1747601585522,1.35812471,2395.9,2395.8,0.83439]
[1747601585721,3.31133011,2396.0,2395.9,0.83435]
[1747601586120,3.31133011,2396.0,2395.9,5.32375]
[1747601586313,3.2078,2396.7,2396.4,0.83416]
[1747601586513,3.2078,2396.8,2396.0,0.31157347]
[1747601586718,1.3428,2396.6,2396.1,12.6503]
[1747601586918,1.3428,2396.6,2396.2,0.83423]
[1747601587114,1.3428,2396.6,2396.3,1.4423]
[1747601587613,1.3428,2396.6,2395.8,3.058]
[1747601587614,3.2078,2396.5,2395.8,3.058]
[1747601587817,0.83435,2395.9,2395.8,3.058]
[1747601588017,12.00835,2395.9,2395.8,3.058]
[1747601588220,0.83442,2395.7,2395.5,1.60520568]
[1747601588418,4.04222,2395.7,2395.5,1.60520568]
[1747601589524,9.04222,2395.7,2395.5,1.60520568]
[1747601589926,10.45142,2395.7,2395.5,1.60520568]
[1747601590523,0.83453,2395.4,2395.3,2.37647122]
[1747601590729,0.83463,2395.1,2394.7,11.208]
[1747601590919,3.2078,2395.0,2394.7,11.208]
[1747601591121,11.169,2394.9,2394.4,1.3822]
[1747601591329,4.04259,2394.7,2394.3,12.4348706]
[1747601591527,1.4092,2394.6,2394.3,12.4348706]
[1747601591722,2.24402,2394.6,2394.3,12.4348706]
[1747601591927,3.2078,2394.4,2394.3,1.2258706]
[1747601592328,21.62088,2394.4,2394.3,1.2258706]
[1747601592530,23.00478,2394.4,2394.3,1.2258706]
[1747601593622,11.83578,2394.4,2394.3,1.2258706]
[1747601593822,23.00278,2394.4,2394.3,1.2258706]
[1747601594027,17.1669,2394.4,2393.7,8.58549419]
[1747601594229,3.2078,2394.1,2393.6,12.4215]
[1747601594429,3.2078,2394.1,2393.8,1.3488]
[1747601594637,1.3769,2394.0,2393.9,0.39680228]
[1747601596328,3.2078,2394.1,2393.9,0.39680228]
[1747601596524,3.2078,2394.1,2394.0,1.415]
[1747601596831,3.2078,2394.1,2394.0,1.81180228]
[1747601597130,3.2078,2394.1,2394.0,0.39680228]
[1747601597437,4.6052,2394.1,2393.7,1.415]
[1747601597639,15.7682,2394.1,2393.7,1.415]
[1747601598137,3.2078,2394.1,2393.8,0.39618273]
[1747601598326,15.7692,2394.1,2393.8,0.39618273]
[1747601598834,0.83503,2394.0,2393.6,12.4215]
[1747601599029,3.2078,2393.8,2393.3,3.2078]
[1747601599231,3.2078,2393.5,2393.4,0.39588026]
[1747601599433,14.3708,2393.5,2393.4,0.39588026]
[1747601599735,14.3708,2393.5,2393.0,1.4376]
[1747601599935,1.3944,2393.4,2393.0,1.4376]
[1747601600237,1.3944,2393.4,2393.1,0.395454]
[1747601600438,3.2078,2393.2,2393.1,0.395454]
[1747601600838,5.4375,2393.2,2393.1,0.395454]
[1747601601039,27.77452,2393.2,2392.4,0.83557]
[1747601601233,27.77452,2393.2,2392.5,1.4376]
[1747601601432,4.6022,2393.2,2392.6,0.3950633]
[1747601601734,11.161,2393.1,2392.7,1.4475]
[1747601601935,3.2078,2393.2,2393.1,0.83533]
[1747601602146,3.2078,2393.2,2392.9,0.83539]
[1747601602340,3.2078,2393.2,2393.0,0.83536]
[1747601602539,15.679,2393.5,2393.1,1.4475]
[1747601603443,15.679,2393.5,2392.3,3.2078]
[1747601603641,3.2078,2393.1,2392.7,1.4475]
[1747601603945,12.4692,2393.0,2392.8,0.39298273]
[1747601604339,1.3112,2393.0,2392.9,0.39298273]
[1747601605353,4.3317,2393.4,2392.9,0.39298273]
[1747601605546,16.9361,2393.4,2393.0,1.3956]
[1747601605754,5.7791,2393.4,2393.0,1.3956]
[1747601605947,5.7791,2393.4,2393.0,2.23095]
[1747601606250,5.7791,2393.4,2393.1,0.39298273]
[1747601606748,0.83527,2393.3,2392.7,1.3956]
[1747601606944,1.4474,2393.2,2392.7,1.3956]
[1747601607150,12.6024,2393.2,2392.8,0.39272034]
[1747601607553,3.2078,2393.1,2392.8,0.39272034]
[1747601607750,3.2078,2393.1,2392.5,12.01453]
[1747601607751,1.3513,2393.0,2392.9,0.39272034]
[1747601607948,12.04267,2393.0,2392.9,0.39272034]
[1747601608146,0.83551,2392.6,2392.1,1.4259]
[1747601608355,2.18686,2392.5,2392.1,1.4259]
[1747601608651,1.3513,2392.5,2392.1,1.4259]
[1747601608952,11.153,2392.6,2392.3,1.4259]
[1747601609340,1.3513,2392.5,2391.9,3.2078]
[1747601609540,3.2078,2392.4,2391.8,12.4279]
[1747601609848,5.39472,2392.3,2391.8,1.4259]
[1747601610041,11.98765,2392.2,2391.8,1.4259]
[1747601610247,3.2078,2392.0,2391.4,1.1493]
[1747601610551,12.5033,2391.9,2391.5,0.08362952]
[1747601610752,11.151,2391.8,2391.5,0.08362952]
[1747601610954,4.5924,2391.7,2391.5,0.08362952]
[1747601611353,12.5356,2391.7,2391.3,1.4259]
[1747601611553,15.7434,2391.7,2391.2,3.2078]
[1747601611755,3.2078,2391.3,2390.4,3.2078]
[1747601612054,16.9629,2391.2,2390.5,4.5435]
[1747601612252,11.149,2391.1,2390.5,5.37972]
[1747601612447,1.3846,2391.0,2390.5,5.37972]
[1747601612655,1.3846,2391.0,2390.5,1.3357]
[1747601612853,1.3846,2391.0,2390.7,0.83615]
[1747601613052,4.4293,2391.2,2390.8,2.17183]
[1747601613255,1.2215,2391.2,2390.8,1.3357]
[1747601613462,1.3846,2391.1,2390.8,1.3357]
[1747601613957,12.5336,2391.1,2390.8,1.3357]
[1747601614354,3.2078,2391.5,2390.9,0.83609]
[1747601614551,1.4425,2391.4,2391.0,1.3427]
[1747601614854,0.83611,2390.9,2390.6,3.058]
[1747601615157,4.6503,2390.8,2390.1,3.2078]
[1747601615350,3.2078,2390.5,2390.0,1.3427]
[1747601615552,12.5895,2390.4,2390.0,1.3427]
[1747601615757,0.83645,2389.9,2389.5,3.21630853]
[1747601616057,0.83669,2389.2,2389.1,4.02038566]
[1747601616356,0.83676,2389.0,2388.9,3.23385491]
[1747601616549,1.4425,2389.1,2388.9,3.31757545]
[1747601616745,11.148,2389.0,2388.9,3.23385491]
[1747601617153,16.148,2389.0,2388.9,3.23385491]
[1747601617354,28.16976,2389.0,2388.9,3.23385491]
[1747601617549,1.4425,2389.1,2388.9,3.23385491]
[1747601617748,11.98376,2389.0,2388.9,3.23385491]
[1747601617948,16.98376,2389.0,2388.9,3.23385491]
[1747601618153,29.57816,2389.0,2388.9,3.23385491]
[1747601618661,5.29981,2388.9,2388.3,5.62853993]
[1747601618856,3.2078,2388.4,2388.3,5.62853993]
[1747601619056,4.04477,2388.4,2388.3,5.62853993]
[1747601619256,31.38577,2388.4,2388.3,5.62853993]
[1747601619559,26.38577,2388.4,2388.3,3.45203993]
[1747601619953,3.2078,2388.4,2388.3,3.45203993]
[1747601620257,14.3588,2388.4,2388.3,3.45203993]
[1747601620856,3.2078,2388.4,2388.3,3.45203993]
[1747601621158,11.155,2388.9,2388.3,6.51003993]
[1747601621458,0.83708,2388.1,2388.0,10.45300273]
[1747601621658,25.5578,2388.1,2387.2,1.3841]
[1747601621849,22.35,2388.0,2387.2,1.3841]
[1747601622049,3.2078,2388.1,2387.2,10.83314703]
[1747601622254,22.31,2388.0,2387.2,10.83314703]
[1747601622451,3.2078,2388.5,2387.7,3.2078]
[1747601622656,3.2078,2388.5,2387.8,1.3841]
[1747601622855,3.2078,2388.5,2387.8,2.22127]
[1747601623055,4.5164,2388.5,2387.8,11.67031703]
[1747601623251,3.2078,2388.4,2387.8,10.83314703]
[1747601623450,5.35337,2388.4,2387.8,10.83314703]
[1747601623659,11.154,2388.3,2387.8,10.83314703]
[1747601623849,4.5164,2388.4,2387.8,10.83314703]
[1747601624057,11.154,2388.3,2387.9,0.83713]
[1747601624261,11.154,2388.3,2388.0,2.2733]
[1747601624555,11.154,2388.3,2388.1,0.83706]
[1747601624763,11.154,2389.0,2388.2,1.4362]
[1747601624956,11.154,2389.0,2388.2,4.644]
[1747601625264,3.2078,2389.2,2388.5,3.2078]
[1747601625556,3.2078,2389.2,2388.7,0.83686]
[1747601625755,11.157,2389.1,2388.8,1.4362]
[1747601626260,11.157,2389.1,2388.8,7.67744703]
[1747601626556,11.157,2389.4,2388.8,15.88524703]
[1747601626861,11.157,2389.4,2389.2,0.83668]
[1747601627059,11.157,2389.5,2389.3,1.3717]
[1747601627461,11.157,2389.5,2389.4,3.2078]
[1747601627857,11.157,2389.5,2389.4,7.61294703]
[1747601628050,11.157,2389.5,2389.4,1.3717]
[1747601628660,3.2078,2389.9,2389.4,7.61294703]
[1747601628864,3.2078,2389.5,2389.4,1.3717]
[1747601629061,4.04439,2389.5,2389.4,1.3717]
[1747601629563,0.83667,2389.3,2388.8,14.3658]
[1747601629762,11.157,2389.2,2388.9,1.3794]
[1747601630255,1.4435,2389.4,2388.9,7.62064703]
[1747601630558,11.157,2389.3,2388.9,7.62064703]
[1747601630859,1.4435,2389.4,2388.9,7.62064703]
[1747601631162,3.2078,2389.8,2389.2,3.2078]
[1747601631361,11.157,2389.9,2389.7,3.2078]
[1747601631562,3.2078,2390.1,2389.8,1.3794]
[1747601631563,14.3648,2390.1,2389.8,1.3794]
[1747601631760,3.2078,2390.1,2389.8,2.21586]
[1747601631958,11.157,2390.0,2389.8,7.62064703]
[1747601632166,3.2078,2390.1,2389.9,0.83644]
[1747601632358,11.157,2390.0,2389.8,10.13571703]
[1747601632663,3.2078,2390.1,2389.8,10.13571703]
[1747601632858,3.2078,2390.1,2389.8,21.29371703]
[1747601633258,11.156,2390.1,2389.8,20.45724703]
[1747601633460,15.2002,2390.1,2389.8,9.29924703]
[1747601633660,0.83641,2390.0,2389.9,0.37898312]
[1747601633858,2.27771,2390.0,2389.9,0.37898312]
[1747601634064,12.13371,2390.0,2389.9,0.37898312]
[1747601634254,23.28871,2390.0,2389.9,0.37898312]
[1747601634661,0.83649,2389.8,2389.3,3.2078]
[1747601634870,0.83649,2389.8,2389.3,9.44904703]
[1747601635058,0.83649,2389.8,2389.4,0.37918134]
[1747601635260,22.4523,2390.0,2389.5,0.37918134]
[1747601635459,0.8365,2389.8,2389.5,0.37918134]
[1747601635661,1.39,2389.7,2389.6,0.37918134]
[1747601636974,2.22652,2389.7,2389.6,0.37918134]
[1747601637173,13.38052,2389.7,2389.6,0.37918134]
[1747601637665,18.38052,2389.7,2389.6,0.37918134]
[1747601637859,0.83683,2388.9,2388.7,3.2078]
[1747601638060,11.154,2388.8,2388.1,21.82044703]
[1747601638266,0.83693,2388.6,2388.1,20.60704703]
[1747601638973,12.5452,2388.8,2388.1,20.60704703]
[1747601639275,11.154,2388.7,2388.2,0.3806913]
[1747601639475,2.22813,2388.6,2388.3,0.3806913]
[1747601639766,1.3912,2388.6,2388.3,0.3806913]
[1747601639975,11.155,2388.5,2388.3,0.3806913]
[1747601640173,11.155,2388.5,2388.4,0.3806913]
[1747601640567,3.2078,2388.9,2388.4,6.62193833]
[1747601640767,11.155,2388.8,2388.5,0.3806913]
[1747601641072,3.2078,2388.9,2388.5,0.3806913]
[1747601641279,11.154,2389.1,2388.6,3.2078]
[1747601641680,11.154,2389.1,2388.9,3.2078]
[1747601641874,0.83668,2389.3,2388.9,11.24124703]
[1747601642067,3.2078,2389.9,2389.0,4.74278319]
[1747601642269,4.5823,2389.9,2389.1,0.3806913]
[1747601642469,3.30247779,2390.0,2389.6,3.2078]
[1747601642777,14.45647779,2390.0,2389.6,3.2078]
[1747601642977,0.83645,2389.9,2389.6,3.2078]
[1747601643179,12.5285,2390.0,2389.4,11.16]
[1747601643381,2.21096,2389.9,2389.7,0.3806913]
[1747601643574,1.3745,2389.9,2389.7,0.3806913]
[1747601643774,2.21095,2389.9,2389.8,0.3806913]
[1747601643972,1.3745,2389.9,2389.8,0.3806913]
[1747601644280,13.36495,2389.9,2389.8,0.3806913]
[1747601644479,12.5285,2389.9,2389.8,0.3806913]
[1747601644682,18.36495,2389.9,2389.8,0.3806913]
[1747601644976,28.22095,2389.9,2389.8,0.3806913]
[1747601645779,28.22095,2389.9,2388.8,3.2078]
[1747601645780,2.09131,2389.7,2388.8,3.2078]
[1747601645980,0.83665,2389.4,2388.8,3.2078]
[1747601646282,1.4287,2389.6,2389.1,3.2078]
[1747601646473,11.153,2389.4,2389.1,3.2078]
[1747601646676,11.153,2389.4,2389.1,3.79982958]
[1747601647180,11.153,2389.5,2389.1,3.79982958]
[1747601647479,1.4287,2389.8,2389.2,1.3803]
[1747601647689,2.2652,2389.8,2389.2,1.3803]
[1747601647981,11.98954,2389.7,2389.2,1.97232958]
[1747601648183,0.83654,2389.7,2389.3,1.3803]
[1747601648377,11.98957,2389.6,2389.3,1.3803]
[1747601648578,11.98957,2389.6,2389.3,1.97232958]
[1747601649687,11.153,2389.6,2389.3,1.97232958]
[1747601650180,1.4287,2389.8,2389.3,1.97232958]
[1747601650488,0.83678,2389.0,2388.8,3.2078]
[1747601650683,11.98878,2389.0,2388.9,1.338]
[1747601650889,1.4218,2389.3,2388.9,1.338]
[1747601651081,0.83674,2389.1,2388.9,1.338]
[1747601651281,11.98771,2389.2,2388.9,1.93002958]
[1747601651683,0.83673,2389.1,2388.9,1.93002958]
[1747601651876,11.98772,2389.2,2388.9,1.93002958]
[1747601652286,0.83667,2389.3,2388.9,1.93002958]
[1747601652586,11.98756,2389.6,2389.1,3.2078]
[1747601652783,0.83666,2389.4,2389.2,1.338]
[1747601652983,14.3588,2389.4,2388.7,3.2078]
[1747601653185,0.83673,2389.1,2389.0,1.338]
[1747601653490,0.83686,2388.8,2388.4,11.151]
[1747601653683,5.29942,2389.4,2388.4,11.74302958]
[1747601653887,11.15,2389.3,2388.6,3.2078]
[1747601654188,2.09211,2388.8,2388.1,3.058]
[1747601654491,13.13579,2388.7,2388.3,3.2078]
[1747601654690,14.51009,2388.7,2388.4,1.3324]
[1747601655000,2.5232,2388.7,2388.4,1.3324]
[1747601655184,3.30247779,2389.0,2388.4,13.07542958]
[1747601655383,3.30247779,2389.0,2388.6,3.2078]
[1747601655584,3.30247779,2389.0,2388.7,1.3324]
[1747601656090,3.30247779,2389.0,2388.7,1.92442958]
[1747601656486,3.30247779,2389.0,2388.8,1.413]
[1747601656985,3.30247779,2389.0,2388.8,2.00502958]
[1747601657883,3.30247779,2389.0,2388.9,0.35127963]
[1747601658086,3.30247779,2389.0,2388.9,1.76427963]
[1747601658303,3.30247779,2389.0,2388.9,2.35630921]
[1747601658687,4.3982,2389.6,2388.9,5.56410921]
[1747601658891,0.83663,2389.4,2389.0,0.35127963]
[1747601659091,11.151,2389.3,2389.1,1.76427963]
[1747601659290,11.151,2389.3,2389.2,0.35127963]
[1747601659697,11.151,2389.3,2389.2,0.94330921]
[1747601659898,3.30247779,2389.7,2389.2,4.15110921]
[1747601660097,3.30247779,2389.7,2389.5,3.2078]
[1747601660301,3.30247779,2389.7,2389.6,1.3127]
[1747601660696,3.30247779,2389.7,2389.6,1.90472958]
[1747601660896,3.30247779,2389.7,2389.6,2.25600921]
[1747601661502,13.00304178,2390.2,2389.6,2.25600921]
[1747601661804,13.00304178,2390.2,2389.8,3.2078]
[1747601661997,13.00304178,2390.2,2389.9,1.3127]
[1747601662495,13.00304178,2390.2,2390.0,0.35127963]
[1747601662701,1.01669178,2390.2,2390.1,1.3601]
[1747601662899,0.83638,2390.1,2390.0,0.35127963]
[1747601663295,2.22918,2390.1,2390.0,0.35127963]
[1747601663898,7.22918,2390.1,2390.0,0.35127963]
[1747601664203,7.22918,2390.1,2389.0,11.151]
[1747601664204,0.8366,2389.5,2389.0,11.151]
[1747601664506,0.8366,2389.5,2389.4,1.3601]
[1747601664905,11.98458,2389.6,2389.4,2.303021]
[1747601665206,11.98457,2389.6,2389.5,0.35089142]
[1747601665403,11.148,2389.6,2389.5,1.71099142]
[1747601665804,11.148,2389.7,2389.5,1.71099142]
[1747601666308,11.148,2389.7,2389.6,0.35089142]
[1747601666499,11.148,2389.7,2389.6,1.72609142]
[1747601666700,2.22932,2389.8,2389.6,1.72609142]
[1747601667004,0.83652,2389.7,2389.6,1.72609142]
[1747601667508,15.8735307,2389.8,2389.6,1.72609142]
[1747601667701,15.8735307,2389.8,2389.7,0.35089142]
[1747601668405,19.0813307,2389.8,2389.7,0.35089142]
[1747601668604,7.9343307,2389.8,2389.7,0.35089142]
[1747601668811,7.9343307,2389.8,2389.0,11.151]
[1747601668812,0.83673,2389.1,2389.0,11.151]
[1747601668994,11.146,2389.3,2389.0,0.59202958]
[1747601669195,11.146,2389.3,2389.1,1.3128]
[1747601669399,3.2078,2389.4,2389.1,1.3128]
[1747601669609,1.3231,2389.5,2389.1,1.90482958]
[1747601669811,11.146,2389.4,2389.1,1.90482958]
[1747601670003,1.01669178,2390.1,2390.0,0.83641]
[1747601670196,1.01669178,2390.1,2390.0,15.19521]
[1747601670403,1e-08,2390.1,2390.0,20.19521]
[1747601671103,1e-08,2390.1,2390.0,23.25321]
[1747601671305,1e-08,2390.1,2390.0,22.4168]
[1747601671506,1e-08,2390.1,2390.0,6.2658]
[1747601671705,1e-08,2390.1,2390.0,23.25321]
[1747601672105,1e-08,2390.1,2390.0,28.04929873]
[1747601672412,1e-08,2390.1,2390.0,39.19429873]
[1747601672903,1e-08,2390.1,2390.0,40.61899873]
[1747601673813,1.39173447,2391.0,2390.7,0.83616]
[1747601674014,1.39173447,2391.0,2390.9,3.2078]
[1747601674316,1.39173447,2391.0,2390.9,14.3568]
[1747601674609,1.39173447,2391.0,2390.9,15.7815]
[1747601675310,1.39173447,2391.0,2390.9,18.8395]
[1747601677407,1.39173447,2391.0,2390.9,23.8395]
[1747601677709,1.39173447,2391.0,2390.9,18.8375]
[1747601678411,1.39173447,2391.0,2390.9,24.6736]
[1747601678913,1.39173447,2391.0,2390.9,18.8375]
[1747601679512,1.39173447,2391.0,2390.9,18.8355]
[1747601680008,0.83595,2391.4,2390.9,18.8355]
[1747601680208,2.26065,2391.4,2390.9,18.8355]
[1747601680415,2.26064,2391.4,2390.9,18.8355]
[1747601681419,1.4247,2391.4,2390.9,18.8355]
[1747601681608,2.26066,2391.4,2390.9,18.8355]
[1747601681808,1.4247,2391.4,2390.9,18.8355]
[1747601682007,0.83601,2391.2,2390.9,18.8355]
[1747601682215,1.428,2391.1,2390.9,15.7775]
[1747601683012,0.83606,2391.0,2390.9,3.2078]
[1747601683313,13.15976,2391.0,2390.9,3.058]
[1747601683508,18.15976,2391.0,2390.9,3.058]
[1747601683818,18.15976,2391.0,2390.3,3.2078]
[1747601683819,19.799,2391.0,2390.3,3.2078]
[1747601684114,0.83626,2390.5,2390.3,3.2078]
[1747601684309,12.518,2390.4,2390.3,3.2078]
[1747601686210,13.35427,2390.4,2390.3,3.2078]
[1747601686514,12.518,2390.4,2390.3,3.2078]
[1747601687904,13.35427,2390.4,2390.3,3.2078]
[1747601688112,0.83623,2390.6,2390.3,3.2078]
[1747601688313,0.83625,2390.5,2390.3,3.2078]
[1747601688714,1.357,2390.4,2390.3,3.2078]
[1747601690323,1.357,2390.4,2390.3,6.2658]
[1747601690717,12.093,2391.0,2390.3,6.2658]
[1747601690913,1.3739,2390.9,2390.7,3.2078]
[1747601691114,13.367,2391.0,2390.4,14.3428]
[1747601691315,0.83619,2390.7,2390.4,15.7815]
[1747601691622,1.3739,2390.6,2390.4,15.7815]
[1747601691824,11.129,2390.5,2390.4,4.6465]
[1747601692025,11.129,2390.5,2390.4,3.2078]
[1747601692225,11.129,2390.5,2390.4,6.2658]
[1747601693024,11.128,2390.5,2390.4,6.2658]
[1747601693621,11.96424,2390.5,2390.4,6.2658]
[1747601693817,13.35044,2390.5,2390.4,6.2658]
[1747601694223,12.5142,2390.5,2390.1,3.2078]
[1747601694421,3.2078,2390.2,2389.8,3.2078]
[1747601694624,2.4462,2390.1,2389.8,3.2078]
[1747601695025,0.9997,2390.3,2389.9,1.3451]
[1747601695227,11.127,2390.2,2389.9,1.3451]
[1747601695424,0.9997,2390.3,2390.1,3.2078]
[1747601695725,11.126,2390.4,2390.1,3.2078]
[1747601695927,2.22254,2390.2,2390.1,3.2078]
[1747601696125,0.8364,2390.1,2389.9,1.3451]
[1747601696325,2.2652,2390.1,2389.9,1.3451]
[1747601696523,1.4288,2390.1,2389.8,3.2078]
[1747601696722,0.83645,2389.9,2389.8,3.2078]
[1747601696926,11.96245,2389.9,2389.8,0.34436737]
[1747601697417,13.39125,2389.9,2389.8,0.34436737]
[1747601697617,13.39125,2389.9,2389.5,4.5845]
[1747601697618,0.83654,2389.7,2389.5,4.5845]
[1747601697819,0.83655,2389.6,2389.5,3.2078]
[1747601698125,0.83654,2389.7,2389.5,3.2078]
[1747601698327,1.4288,2389.7,2389.5,3.2078]
[1747601698527,2.26533,2389.7,2389.5,3.2078]
[1747601698827,11.124,2389.6,2389.5,3.2078]
[1747601699027,11.124,2389.6,2389.5,3.55281819]
[1747601700217,1.06,2390.0,2389.5,3.55281819]
[1747601700425,11.124,2389.9,2389.8,3.2078]
[1747601700620,14.44688088,2390.2,2389.8,3.2078]
[1747601700821,3.32288088,2390.2,2390.1,4.04418]
[1747601701023,2.0982,2390.8,2390.5,0.83621]
[1747601701328,1.3572,2391.1,2390.7,3.2078]
[1747601701530,1.73186375,2390.8,2390.6,0.83619]
[1747601701730,1.73186375,2390.8,2390.7,3.55281819]
[1747601701930,1.73186375,2390.8,2390.7,4.38898819]
[1747601702233,1.73186375,2390.8,2390.7,8.55281819]
[1747601702420,1.73186375,2390.8,2390.7,3.55281819]
[1747601702626,6.73186375,2390.8,2390.6,3.058]
[1747601702928,0.83637,2390.2,2389.7,3.2078]
[1747601703128,12.5315,2390.1,2389.7,3.2078]
[1747601703422,2.0982,2390.7,2389.7,3.2078]
[1747601703626,1.4105,2390.4,2390.0,3.2078]
[1747601703829,2.0982,2390.7,2390.0,3.2078]
[1747601704025,2.24672,2390.6,2390.0,3.2078]
[1747601704328,12.5305,2390.6,2389.9,3.2078]
[1747601704729,3.2078,2390.5,2389.9,3.2078]
[1747601704934,2.0982,2390.7,2389.9,3.2078]
[1747601705129,3.5087,2390.7,2390.2,4.04412]
[1747601705326,3.5087,2390.7,2390.5,3.2078]
[1747601705531,1.38803019,2390.9,2390.5,3.2078]
[1747601705832,1.38803019,2390.9,2390.6,11.97219]
[1747601706636,1.38803019,2390.9,2390.6,11.9722]
[1747601706829,1.38803019,2390.9,2390.6,11.136]
[1747601707432,2.22415019,2390.9,2390.6,11.136]
[1747601707633,1.38803019,2390.9,2390.6,11.136]
[1747601707832,12.50503019,2390.9,2390.6,11.136]
[1747601708033,0.8362,2390.6,2390.5,6.2658]
[1747601708234,4.6317,2390.8,2390.1,1.0885]
[1747601708436,0.83641,2390.0,2389.9,1.23549955]
[1747601708742,11.116,2390.0,2389.9,1.23549955]
[1747601709035,13.5863,2390.5,2389.9,1.23549955]
[1747601709237,13.5863,2390.5,2389.9,4.29349955]
[1747601709238,0.83636,2390.2,2389.9,4.29349955]
[1747601709433,1.4253,2390.1,2389.9,4.29349955]
[1747601709634,12.161,2390.5,2389.9,4.29349955]
[1747601709948,12.5393,2390.4,2390.1,3.2078]
[1747601710234,11.114,2390.3,2390.1,3.2078]
[1747601710541,1.046,2390.5,2390.1,3.2078]
[1747601710741,11.114,2390.4,2390.1,3.2078]
[1747601710929,1.4253,2390.7,2390.1,3.2078]
[1747601711135,11.113,2390.7,2390.4,3.2078]
[1747601711442,0.83623,2390.6,2390.4,3.2078]
[1747601711636,1.0383,2390.8,2390.1,3.2078]
[1747601711840,11.113,2390.7,2390.4,3.2078]
[1747601712245,12.1488,2391.1,2390.6,0.83619]
[1747601712449,11.113,2391.1,2390.7,3.2078]
[1747601713045,3.32795157,2391.1,2391.0,3.2078]
[1747601713439,4.71598176,2391.1,2391.0,3.2078]
[1747601713640,4.71598176,2391.1,2391.0,4.04386]
[1747601713840,4.71598176,2391.1,2391.0,15.15486]
[1747601714142,4.71598176,2391.1,2391.0,18.21286]
[1747601714345,4.71598176,2391.1,2391.0,23.21286]